[Event "79th UKR-ch Women 2019"]
[Site "Lutsk"]
[Date "2019.12.10"]
[Round "1"]
[White "Berdnyk, Mariia"]
[Black "Dolzhykova, Kateryna"]
[Result "1-0"]
[ECO "E73"]
[WhiteElo "2319"]
[BlackElo "2164"]
[Annotator "ChessBase"]
[PlyCount "87"]
[EventDate "2019.??.??"]
[EventCountry "UKR"]
[SourceTitle "playchess.com"]
[Source "ChessBase"]
[SourceQuality "1"]
[TimeControl "40/5400+30:1800+30"]

1. d4 Nf6 2. c4 d6 3. Nc3 g6 4. e4 Bg7 5. Be2 O-O 6. Be3 e5 7. d5 a5 8. g4 Na6 9. h4 Nc5 10. f3 c6 11. h5 Qb6 12. Qd2 a4 13. Nh3 cxd5 14. cxd5 a3 15. b3 Bd7 16. h6 Bh8 17. Nf2 Rfc8 18. O-O Qa5 19. Nb1 Qxd2 20. Bxd2 Ne8 21. Bc1 b5 22. b4 Na4 23. Nxa3 Nc3 24. Bd3 Bf6 25. Re1 Bd8 26. Bc2 Bb6 27. Bb3 Bd4 28. Bb2 Nxa2 29. Bxd4 Rxa3 30. Reb1 Rxb3 31. Rxb3 Nc1 32. Rb2 exd4 33. Ra7 Rd8 34. Rc2 Nb3 35. Nd3 f5 36. gxf5 gxf5 37. Rb2 fxe4 38. fxe4 Nf6 39. Rxb3 Nxe4 40. Rb2 Kh8 41. Rg2 Bf5 42. Nf4 Nc3 43. Ne6 Rc8 44. Ng5 1-0

[Event "79th UKR-ch Women 2019"]
[Site "Lutsk"]
[Date "2019.12.10"]
[Round "1"]
[White "Babiy, Olga"]
[Black "Tsirulnik, Maritsa"]
[Result "0-1"]
[ECO "C55"]
[WhiteElo "2258"]
[BlackElo "2119"]
[Annotator "ChessBase"]
[PlyCount "120"]
[EventDate "2019.??.??"]
[EventCountry "UKR"]
[SourceTitle "playchess.com"]
[Source "ChessBase"]
[SourceQuality "1"]
[TimeControl "40/5400+30:1800+30"]

1. e4 e5 2. Nf3 Nc6 3. Bc4 Nf6 4. d3 Be7 5. c3 O-O 6. O-O d6 7. Nbd2 Na5 8. Bb5 c5 9. Ba4 a6 10. d4 exd4 11. cxd4 Bg4 12. d5 Nd7 13. h3 Bxf3 14. Qxf3 Bf6 15. Rb1 b5 16. Bc2 c4 17. Qg3 Qc7 18. Nf3 b4 19. Bf4 Nb7 20. Rfc1 Rfe8 21. Ba4 Rxe4 22. Nd2 Rd4 23. Be3 Rxd5 24. Rxc4 Ndc5 25. Bd1 a5 26. Bf3 Be5 27. Qg4 h5 28. Qe4 Rxd2 29. Rxc5 dxc5 30. Bxd2 Rb8 31. Bxh5 Rd8 32. Be3 Qe7 33. Bf3 Rd7 34. Qc6 Bd4 35. Bf4 Nd6 36. Qa8+ Qd8 37. Qa6 Ne8 38. Qc4 Nf6 39. Bc6 Re7 40. Bg3 Re6 41. Bf3 Qe8 42. Kh2 Ne4 43. Qc2 Nxg3 44. fxg3 Re1 45. h4 Rxb1 46. Qxb1 Qe5 47. Qd3 Bxb2 48. Qd8+ Kh7 49. Qd3+ g6 50. h5 Bd4 51. hxg6+ fxg6 52. Qb3 Kg7 53. Qa4 Kf8 54. Qd7 Qh8+ 55. Qh3 c4 56. Be4 a4 57. Bxg6 Qxh3+ 58. gxh3 a3 59. Bb1 b3 60. Kg2 c3 0-1

[Event "79th UKR-ch Women 2019"]
[Site "Lutsk"]
[Date "2019.12.10"]
[Round "1"]
[White "Martynkova, Olena"]
[Black "Hrebenshchykova, Yelyzaveta"]
[Result "1-0"]
[ECO "D79"]
[WhiteElo "2243"]
[BlackElo "2029"]
[Annotator "ChessBase"]
[PlyCount "69"]
[EventDate "2019.??.??"]
[EventCountry "UKR"]
[SourceTitle "playchess.com"]
[Source "ChessBase"]
[SourceQuality "1"]
[TimeControl "40/5400+30:1800+30"]

1. d4 Nf6 2. Nf3 g6 3. g3 Bg7 4. c4 O-O 5. Bg2 c6 6. O-O d5 7. cxd5 cxd5 8. Ne5 Ng4 9. Nxg4 Bxg4 10. Nc3 Nc6 11. h3 Bd7 12. e3 e6 13. b3 Qe7 14. Bb2 Rfd8 15. Rc1 Rac8 16. Qd2 Be8 17. Rc2 f6 18. Rfc1 Bf7 19. Nb5 e5 20. dxe5 fxe5 21. Ba3 Qe6 22. h4 a6 23. Nc3 b5 24. Ne2 a5 25. Kh2 Qd7 26. Bb2 b4 27. Ng1 Be6 28. Nf3 h6 29. Rc5 Bf8 30. Rxc6 Qxc6 31. Rxc6 Rxc6 32. Nxe5 Rc7 33. Nxg6 Bg7 34. Bxg7 Rxg7 35. Nf4 1-0

[Event "79th UKR-ch Women 2019"]
[Site "Lutsk"]
[Date "2019.12.11"]
[Round "2.1"]
[White "Tsirulnik, Maritsa"]
[Black "Hrebenshchykova, Yelyzaveta"]
[Result "1/2-1/2"]
[ECO "E63"]
[WhiteElo "2119"]
[BlackElo "2029"]
[Annotator "NA"]
[PlyCount "117"]
[EventDate "2019.12.10"]
[EventType "tourn"]
[EventCountry "UKR"]
[SourceTitle "playchess.com"]
[Source "ChessBase"]
[SourceQuality "1"]
[TimeControl "40/5400+30:1800+30"]

1. d4 {[%emt 0:00:00]} Nf6 {[%emt 0:00:00]} 2. c4 {[%emt 0:00:00]} g6 {[%emt 0:00:00]} 3. Nf3 {[%emt 0:00:00]} Bg7 {[%emt 0:00:00]} 4. g3 {[%emt 0:00:00]} O-O {[%emt 0:00:00]} 5. Bg2 {[%emt 0:00:00]} d6 {[%emt 0:00:11]} 6. O-O {[%emt 0:00:00]} Nc6 {[%emt 0:00:04]} 7. Nc3 {[%emt 0:00:07]} a6 {[%emt 0:00:46]} 8. b3 {[%emt 0:07:08]} e5 {[%emt 0:23:15]} 9. Bb2 {[%emt 0:23:52]} Bg4 {[%emt 0:14:57]} 10. dxe5 {[%emt 0:03:50]} dxe5 {[%emt 0:02:00]} 11. h3 {[%emt 0:02:51]} Bf5 {[%emt 0:09:11]} 12. g4 {[%emt 0:09:06]} Be6 {[%emt 0:04:15]} 13. Qxd8 {[%emt 0:10:02]} Raxd8 {[%emt 0:00:24]} 14. Na4 {[%emt 0:00:09]} h5 {[%emt 0:12:14]} 15. Nxe5 {[%emt 0:04:30]} hxg4 {[%emt 0:10:17]} 16. Nxc6 {[%emt 0:01:18]} bxc6 {[%emt 0:00:04]} 17. hxg4 {[%emt 0:01:33]} Bxg4 {[%emt 0:00:06]} 18. Rfe1 {[%emt 0:05:14]} Rd2 {[%emt 0:02:32]} 19. Bxc6 {[%emt 0:05:04]} Bxe2 {[%emt 0:04:53]} 20. Bc3 {[%emt 0:10:08]} Rc2 {[%emt 0:00:08]} 21. Rec1 {[%emt 0:01:47]} Rxc1+ {[%emt 0:00:39]} 22. Rxc1 {[%emt 0:00:02]} Bg4 {[%emt 0:08:17]} 23. Re1 {[%emt 0:03:11]} Bd7 {[%emt 0:02:52]} 24. Bxd7 {[%emt 0:02:11]} Nxd7 {[%emt 0:00:03]} 25. Rd1 {[%emt 0:03:21]} Bxc3 {[%emt 0:02:46]} 26. Nxc3 {[%emt 0:00:03]} Nf6 {[%emt 0:00:31]} 27. Nd5 {[%emt 0:01:19]} Nxd5 {[%emt 0:02:15]} 28. Rxd5 {[%emt 0:00:05]} Re8 {[%emt 0:00:39]} 29. Rc5 {[%emt 0:00:34]} Re2 {[%emt 0:00:12]} 30. Ra5 {[%emt 0:02:03]} Re6 {[%emt 0:00:10]} 31. Kf1 {[%emt 0:00:43]} Rc6 {[%emt 0:00:09]} 32. Ke2 {[%emt 0:01:09]} Kg7 {[%emt 0:00:24]} 33. Ke3 {[%emt 0:00:43]} Kf6 {[%emt 0:01:26]} 34. Kd4 {[%emt 0:00:54]} Rd6+ {[%emt 0:00:37]} 35. Rd5 {[%emt 0:01:05]} Re6 {[%emt 0:00:26]} 36. Rd7 {[%emt 0:00:38]} Re2 {[%emt 0:00:13]} 37. Rxc7 {[%emt 0:01:29]} Rxa2 {[%emt 0:00:08]} 38. c5 {[%emt 0:01:44]} Rxf2 {[%emt 0:00:52]} 39. Rc6+ {[%emt 0:00:10]} Kf5 {[%emt 0:00:04]} 40. Rxa6 {[%emt 0:00:00]} g5 {[%emt 0:00:00]} 41. b4 {[%emt 0:12:09]} g4 {[%emt 0:08:12]} 42. c6 {[%emt 0:07:54]} g3 {[%emt 0:15:34]} 43. Ra3 {[%emt 0:00:36]} g2 {[%emt 0:03:05]} 44. Rg3 {[%emt 0:00:13]} Ke6 {[%emt 0:00:54]} 45. Kc5 {[%emt 0:00:54]} f5 {[%emt 0:01:08]} 46. Kb6 {[%emt 0:06:38]} Rc2 {[%emt 0:01:49]} 47. c7 {[%emt 0:02:39]} Kd7 {[%emt 0:00:10]} 48. Rg7+ {[%emt 0:00:07]} Kc8 {[%emt 0:00:23]} 49. Rg8+ {[%emt 0:00:31]} Kd7 {[%emt 0:00:04]} 50. b5 {[%emt 0:02:08]} f4 {[%emt 0:04:00]} 51. c8=Q+ {[%emt 0:01:23]} Rxc8 {[%emt 0:00:12]} 52. Rxg2 {[%emt 0:00:03]} f3 {[%emt 0:01:48]} 53. Rd2+ {[%emt 0:01:17]} Ke6 {[%emt 0:00:14]} 54. Kb7 {[%emt 0:00:07]} Rc3 {[%emt 0:00:39]} 55. b6 {[%emt 0:01:05]} Ke5 {[%emt 0:00:08]} 56. Ka7 {[%emt 0:01:08]} Rb3 {[%emt 0:00:39]} 57. b7 {[%emt 0:00:52]} Ke4 {[%emt 0:00:06]} 58. Rd7 {[%emt 0:00:08]} f2 {[%emt 0:00:30]} 59. Rf7 {[%emt 0:00:20]} 1/2-1/2

[Event "79th UKR-ch Women 2019"]
[Site "Lutsk"]
[Date "2019.12.11"]
[Round "2.2"]
[White "Dolzhykova, Kateryna"]
[Black "Martynkova, Olena"]
[Result "1/2-1/2"]
[ECO "C47"]
[WhiteElo "2164"]
[BlackElo "2243"]
[Annotator "ChessBase"]
[PlyCount "47"]
[EventDate "2019.12.10"]
[EventType "tourn"]
[EventCountry "UKR"]
[SourceTitle "playchess.com"]
[Source "ChessBase"]
[SourceQuality "1"]
[TimeControl "40/5400+30:1800+30"]

1. e4 {[%emt 0:00:00]} e5 {[%emt 0:00:25]} 2. Nf3 {[%emt 0:00:00]} Nc6 {[%emt 0:00:23]} 3. Nc3 {[%emt 0:00:00]} Nf6 {[%emt 0:00:39]} 4. d4 {[%emt 0:00:00]} exd4 {[%emt 0:00:32]} 5. Nxd4 {[%emt 0:00:00]} Bb4 {[%emt 0:00:46]} 6. Nxc6 {[%emt 0:00:08]} bxc6 {[%emt 0:00:14]} 7. Bd3 {[%emt 0:00:05]} d5 {[%emt 0:01:24]} 8. exd5 {[%emt 0:00:10]} cxd5 {[%emt 0:00:15]} 9. O-O {[%emt 0:00:11]} O-O {[%emt 0:00:24]} 10. Bg5 {[%emt 0:00:05]} c6 {[%emt 0:00:40]} 11. Qf3 {[%emt 0:00:11]} Bd6 {[%emt 0:02:19]} 12. h3 {[%emt 0:04:25]} Rb8 {[%emt 0:01:43]} 13. Rab1 {[%emt 0:00:24]} h6 {[%emt 0:01:40]} 14. Bf4 {[%emt 0:02:15]} Rb4 {[%emt 0:04:29]} 15. Bxd6 {[%emt 0:01:03]} Qxd6 {[%emt 0:00:06]} 16. Ne2 {[%emt 0:01:37]} Ne4 {[%emt 0:11:13]} 17. Rfd1 {[%emt 0:01:33]} Re8 {[%emt 0:10:05]} 18. c3 {[%emt 0:04:29]} Ng5 {[%emt 0:06:52]} 19. Qg3 {[%emt 0:01:53]} Qxg3 {[%emt 0:00:31]} 20. Nxg3 {[%emt 0:00:15]} Rb6 {[%emt 0:04:38]} 21. Re1 {[%emt 0:00:33]} Rxe1+ {[%emt 0:03:40]} 22. Rxe1 {[%emt 0:00:01]} Ne6 {[%emt 0:01:47]} 23. Nf5 {[%emt 0:05:30]} Kf8 {[%emt 0:04:02]} 24. b4 {[%emt 0:00:36]} 1/2-1/2

[Event "79th UKR-ch Women 2019"]
[Site "Lutsk"]
[Date "2019.12.11"]
[Round "2.3"]
[White "Zhukova, Natalia"]
[Black "Berdnyk, Mariia"]
[Result "1-0"]
[ECO "E77"]
[WhiteElo "2324"]
[BlackElo "2319"]
[Annotator "NA"]
[PlyCount "63"]
[EventDate "2019.12.10"]
[EventType "tourn"]
[EventCountry "UKR"]
[SourceTitle "playchess.com"]
[Source "ChessBase"]
[SourceQuality "1"]
[TimeControl "40/5400+30:1800+30"]

1. c4 {[%emt 0:00:00]} g6 {[%emt 0:00:00]} 2. e4 {[%emt 0:00:02]} Bg7 {[%emt 0:00:00]} 3. d4 {[%emt 0:00:20]} d6 {[%emt 0:00:00]} 4. Nc3 {[%emt 0:00:22]} Nf6 {[%emt 0:00:00]} 5. f4 {[%emt 0:00:42]} c5 {[%emt 0:00:00]} 6. d5 {[%emt 0:00:11]} O-O {[%emt 0:00:03]} 7. Nf3 {[%emt 0:00:12]} e6 {[%emt 0:00:04]} 8. dxe6 {[%emt 0:00:12]} fxe6 {[%emt 0:00:03]} 9. Bd3 {[%emt 0:00:13]} Nc6 {[%emt 0:00:02]} 10. O-O {[%emt 0:00:15]} Nd4 {[%emt 0:00:02]} 11. Bd2 {[%emt 0:00:22]} e5 {[%emt 0:00:04]} 12. Nxd4 {[%emt 0:03:26]} exd4 {[%emt 0:00:05]} 13. Nd5 {[%emt 0:00:43]} Nxd5 {[%emt 0:00:04]} 14. cxd5 {[%emt 0:10:13]} a6 {[%emt 0:00:03]} 15. a4 {[%emt 0:00:36]} Bd7 {[%emt 0:00:04]} 16. Qe1 {[%emt 0:35:50]} Re8 {[%emt 0:20:40]} 17. Qg3 {[%emt 0:02:01]} c4 {[%emt 0:23:12]} 18. Bxc4 {[%emt 0:00:48]} Rxe4 {[%emt 0:03:54]} 19. Bd3 {[%emt 0:00:48]} Re8 {[%emt 0:05:03]} 20. f5 {[%emt 0:05:06]} Bxf5 {[%emt 0:04:24]} 21. Bxf5 {[%emt 0:00:38]} gxf5 {[%emt 0:00:05]} 22. Rxf5 {[%emt 0:03:41]} Qd7 {[%emt 0:09:54]} 23. Qg4 {[%emt 0:15:56]} Re7 {[%emt 0:01:55]} 24. Raf1 {[%emt 0:01:33]} Kh8 {[%emt 0:02:58]} 25. Qh4 {[%emt 0:09:53]} Rae8 {[%emt 0:04:10]} 26. Rh5 {[%emt 0:05:07]} Be5 {[%emt 0:01:03]} 27. Rhf5 {[%emt 0:03:12]} Bg7 {[%emt 0:01:41]} 28. Rh5 {[%emt 0:00:03]} Be5 {[%emt 0:00:07]} 29. Rhf5 {[%emt 0:00:04]} Bg7 {[%emt 0:00:38]} 30. Bh6 {[%emt 0:01:56]} Re4 {[%emt 0:08:10]} 31. Qxe4 {[%emt 0:00:20]} Bxh6 {[%emt 0:00:47]} 32. Qxd4+ {[%emt 0:00:10]} 1-0

[Event "79th UKR-ch Women 2019"]
[Site "Lutsk"]
[Date "2019.12.11"]
[Round "2.4"]
[White "Doluhanova, Evgeniya"]
[Black "Osmak, Iulija"]
[Result "1/2-1/2"]
[ECO "C55"]
[WhiteElo "2293"]
[BlackElo "2388"]
[Annotator "NA"]
[PlyCount "188"]
[EventDate "2019.12.10"]
[EventType "tourn"]
[EventCountry "UKR"]
[SourceTitle "playchess.com"]
[Source "ChessBase"]
[SourceQuality "1"]
[TimeControl "40/5400+30:1800+30"]

1. e4 {[%emt 0:00:32]} e5 {[%emt 0:00:00]} 2. Nf3 {[%emt 0:00:07]} Nc6 {[%emt 0:00:00]} 3. Bc4 {[%emt 0:00:03]} Nf6 {[%emt 0:00:20]} 4. d3 {[%emt 0:00:23]} Be7 {[%emt 0:04:02]} 5. O-O {[%emt 0:02:01]} d6 {[%emt 0:01:45]} 6. c3 {[%emt 0:00:51]} O-O {[%emt 0:08:51]} 7. b4 {[%emt 0:04:49]} Kh8 {[%emt 0:08:20]} 8. Ng5 {[%emt 0:11:02]} d5 {[%emt 0:04:08]} 9. exd5 {[%emt 0:08:22]} Nxd5 {[%emt 0:00:19]} 10. Qh5 {[%emt 0:04:49]} Bxg5 {[%emt 0:01:28]} 11. Bxg5 {[%emt 0:00:23]} f6 {[%emt 0:00:39]} 12. Bd2 {[%emt 0:14:52]} Nb6 {[%emt 0:04:34]} 13. Bb3 {[%emt 0:11:21]} Qxd3 {[%emt 0:03:20]} 14. Be3 {[%emt 0:02:41]} Qf5 {[%emt 0:12:39]} 15. Qe2 {[%emt 0:06:03]} Qg6 {[%emt 0:03:17]} 16. Na3 {[%emt 0:08:20]} Bf5 {[%emt 0:02:03]} 17. Rfd1 {[%emt 0:01:15]} Rfd8 {[%emt 0:02:11]} 18. Rxd8+ {[%emt 0:06:37]} Rxd8 {[%emt 0:00:45]} 19. Rd1 {[%emt 0:00:46]} Bh3 {[%emt 0:15:17]} 20. Rxd8+ {[%emt 0:02:01]} Nxd8 {[%emt 0:00:02]} 21. f3 {[%emt 0:01:03]} Be6 {[%emt 0:10:04]} 22. Qd1 {[%emt 0:03:48]} Qe8 {[%emt 0:02:11]} 23. Nb5 {[%emt 0:01:10]} Nd5 {[%emt 0:03:20]} 24. Bxd5 {[%emt 0:03:39]} Qxb5 {[%emt 0:00:05]} 25. Bb3 {[%emt 0:04:14]} Bxb3 {[%emt 0:02:22]} 26. Qxd8+ {[%emt 0:00:26]} Bg8 {[%emt 0:00:03]} 27. h3 {[%emt 0:00:51]} Qc6 {[%emt 0:01:47]} 28. Bc5 {[%emt 0:00:40]} b6 {[%emt 0:04:50]} 29. Bf8 {[%emt 0:00:11]} Qc4 {[%emt 0:03:40]} 30. a4 {[%emt 0:00:46]} Qf7 {[%emt 0:01:45]} 31. a5 {[%emt 0:00:20]} h6 {[%emt 0:00:46]} 32. Be7 {[%emt 0:00:52]} bxa5 {[%emt 0:00:25]} 33. bxa5 {[%emt 0:00:34]} c6 {[%emt 0:00:38]} 34. Bc5 {[%emt 0:00:29]} a6 {[%emt 0:00:20]} 35. Qc8 {[%emt 0:00:29]} Qc4 {[%emt 0:00:39]} 36. Qxc6 {[%emt 0:00:25]} Qxc3 {[%emt 0:00:07]} 37. Qb6 {[%emt 0:00:10]} Qc1+ {[%emt 0:00:42]} 38. Kh2 {[%emt 0:00:15]} Qf4+ {[%emt 0:00:07]} 39. Kh1 {[%emt 0:00:23]} Bc4 {[%emt 0:00:53]} 40. Qb8+ {[%emt 0:00:00]} Kh7 {[%emt 0:00:00]} 41. Qb1+ {[%emt 0:00:48]} Kh8 {[%emt 0:03:08]} 42. Qb8+ {[%emt 0:00:07]} Bg8 {[%emt 0:01:22]} 43. Qa7 {[%emt 0:02:18]} Qc1+ {[%emt 0:01:32]} 44. Kh2 {[%emt 0:00:30]} Qc4 {[%emt 0:03:06]} 45. Bf8 {[%emt 0:01:11]} Bf7 {[%emt 0:00:13]} 46. Qb7 {[%emt 0:02:44]} Kg8 {[%emt 0:02:41]} 47. Qb4 {[%emt 0:01:03]} Qd3 {[%emt 0:01:44]} 48. Qd6 {[%emt 0:02:10]} Qc4 {[%emt 0:01:56]} 49. Qb4 {[%emt 0:00:07]} Qc8 {[%emt 0:00:27]} 50. Bd6 {[%emt 0:00:06]} Kh7 {[%emt 0:00:39]} 51. Bf8 {[%emt 0:03:30]} h5 {[%emt 0:05:48]} 52. Bc5 {[%emt 0:02:25]} Qf5 {[%emt 0:00:40]} 53. Bf8 {[%emt 0:01:48]} Qg6 {[%emt 0:01:07]} 54. Qb6 {[%emt 0:04:01]} Bc4 {[%emt 0:00:25]} 55. Qc5 {[%emt 0:03:31]} Bb5 {[%emt 0:00:49]} 56. Qf2 {[%emt 0:02:23]} Kg8 {[%emt 0:00:43]} 57. Bc5 {[%emt 0:00:05]} Qf5 {[%emt 0:02:12]} 58. Be3 {[%emt 0:02:03]} Bc4 {[%emt 0:01:43]} 59. Qe1 {[%emt 0:01:36]} Kh7 {[%emt 0:00:55]} 60. Qf2 {[%emt 0:03:47]} Bd5 {[%emt 0:01:45]} 61. Qe2 {[%emt 0:01:16]} Bb7 {[%emt 0:00:40]} 62. Qd1 {[%emt 0:01:54]} e4 {[%emt 0:01:49]} 63. Qb1 {[%emt 0:00:58]} Qe5+ {[%emt 0:03:27]} 64. f4 {[%emt 0:00:43]} Qc3 {[%emt 0:01:03]} 65. Qb6 {[%emt 0:01:04]} Bd5 {[%emt 0:01:55]} 66. Qc5 {[%emt 0:00:38]} Qd3 {[%emt 0:00:19]} 67. Bd4 {[%emt 0:01:36]} Bf7 {[%emt 0:01:04]} 68. Be3 {[%emt 0:00:14]} Qe2 {[%emt 0:00:38]} 69. Qd4 {[%emt 0:00:24]} Bg6 {[%emt 0:00:38]} 70. Qd2 {[%emt 0:00:28]} Qb5 {[%emt 0:00:24]} 71. Bb6 {[%emt 0:00:25]} Bf7 {[%emt 0:00:55]} 72. Qe3 {[%emt 0:00:10]} Qf5 {[%emt 0:00:15]} 73. Bc5 {[%emt 0:00:41]} Bc4 {[%emt 0:00:20]} 74. Bb6 {[%emt 0:00:26]} Bd3 {[%emt 0:00:53]} 75. Kg1 {[%emt 0:00:37]} Qb5 {[%emt 0:00:46]} 76. Kh2 {[%emt 0:00:34]} Kg6 {[%emt 0:00:31]} 77. Qg3+ {[%emt 0:01:19]} Kf7 {[%emt 0:00:07]} 78. Qf2 {[%emt 0:00:20]} Qf5 {[%emt 0:00:24]} 79. Qa2+ {[%emt 0:00:19]} Kg6 {[%emt 0:00:23]} 80. Be3 {[%emt 0:00:26]} Qb5 {[%emt 0:00:46]} 81. Qd2 {[%emt 0:00:46]} Qb1 {[%emt 0:00:56]} 82. Qc1 {[%emt 0:00:20]} Qa2 {[%emt 0:00:26]} 83. Qd2 {[%emt 0:00:06]} Qb3 {[%emt 0:00:15]} 84. Qe1 {[%emt 0:00:23]} Bb5 {[%emt 0:00:44]} 85. Qg3+ {[%emt 0:00:24]} Kf7 {[%emt 0:00:26]} 86. Bb6 {[%emt 0:01:34]} Qd5 {[%emt 0:00:17]} 87. Qf2 {[%emt 0:00:29]} Bc6 {[%emt 0:00:40]} 88. Qc5 {[%emt 0:00:28]} Ke6 {[%emt 0:00:44]} 89. Qxd5+ {[%emt 0:00:35]} Kxd5 {[%emt 0:00:32]} 90. h4 {[%emt 0:00:27]} Kc4 {[%emt 0:00:11]} 91. Kg1 {[%emt 0:00:02]} Kd3 {[%emt 0:00:26]} 92. Kf2 {[%emt 0:00:05]} e3+ {[%emt 0:00:47]} 93. Bxe3 {[%emt 0:00:04]} Bxg2 {[%emt 0:00:04]} 94. Bb6 {[%emt 0:00:04]} Bc6 {[%emt 0:00:12]} 1/2-1/2

[Event "79th UKR-ch Women 2019"]
[Site "Lutsk"]
[Date "2019.12.11"]
[Round "2.5"]
[White "Babiy, Olga"]
[Black "Rakhmangulova, Anastasiya"]
[Result "1-0"]
[ECO "B12"]
[WhiteElo "2258"]
[BlackElo "2215"]
[Annotator "NA"]
[PlyCount "95"]
[EventDate "2019.12.10"]
[EventType "tourn"]
[EventCountry "UKR"]
[SourceTitle "playchess.com"]
[Source "ChessBase"]
[SourceQuality "1"]
[TimeControl "40/5400+30:1800+30"]

1. e4 {[%emt 0:00:00]} c6 {[%emt 0:00:00]} 2. d4 {[%emt 0:00:00]} d5 {[%emt 0:00:00]} 3. e5 {[%emt 0:00:00]} Bf5 {[%emt 0:00:00]} 4. h4 {[%emt 0:00:03]} Qc7 {[%emt 0:00:05]} 5. g4 {[%emt 0:01:01]} Bd7 {[%emt 0:00:05]} 6. Nc3 {[%emt 0:03:05]} e6 {[%emt 0:00:31]} 7. f4 {[%emt 0:02:02]} h5 {[%emt 0:01:26]} 8. gxh5 {[%emt 0:01:27]} Nh6 {[%emt 0:01:10]} 9. Bh3 {[%emt 0:02:24]} Nf5 {[%emt 0:06:52]} 10. Bxf5 {[%emt 0:08:36]} exf5 {[%emt 0:04:27]} 11. Be3 {[%emt 0:00:28]} Be7 {[%emt 0:04:59]} 12. Qf3 {[%emt 0:02:52]} Be6 {[%emt 0:04:54]} 13. O-O-O {[%emt 0:02:19]} Nd7 {[%emt 0:00:43]} 14. Nh3 {[%emt 0:08:29]} O-O-O {[%emt 0:12:55]} 15. Rdg1 {[%emt 0:03:26]} Rdg8 {[%emt 0:02:35]} 16. Ng5 {[%emt 0:06:00]} Nf8 {[%emt 0:01:16]} 17. Bd2 {[%emt 0:03:23]} Rh6 {[%emt 0:06:19]} 18. Ne2 {[%emt 0:01:17]} Rgh8 {[%emt 0:04:52]} 19. Ng3 {[%emt 0:00:47]} c5 {[%emt 0:18:47]} 20. dxc5 {[%emt 0:02:47]} Bxc5 {[%emt 0:00:08]} 21. Rd1 {[%emt 0:00:29]} d4 {[%emt 0:03:27]} 22. Nxe6 {[%emt 0:06:20]} fxe6 {[%emt 0:00:55]} 23. Be1 {[%emt 0:01:54]} g6 {[%emt 0:12:06]} 24. hxg6 {[%emt 0:02:34]} Nxg6 {[%emt 0:00:18]} 25. h5 {[%emt 0:00:45]} Ne7 {[%emt 0:00:15]} 26. Bf2 {[%emt 0:01:45]} Nc6 {[%emt 0:02:23]} 27. a3 {[%emt 0:01:15]} Kb8 {[%emt 0:05:00]} 28. Kb1 {[%emt 0:02:06]} Rc8 {[%emt 0:01:43]} 29. Ne2 {[%emt 0:02:09]} Qb6 {[%emt 0:04:15]} 30. Rd3 {[%emt 0:02:39]} Na5 {[%emt 0:01:00]} 31. Rhd1 {[%emt 0:02:02]} Nc4 {[%emt 0:01:15]} 32. Rb3 {[%emt 0:00:21]} Qc6 {[%emt 0:00:11]} 33. Qxc6 {[%emt 0:07:20]} Rxc6 {[%emt 0:00:04]} 34. Bxd4 {[%emt 0:00:09]} Bxd4 {[%emt 0:01:32]} 35. Nxd4 {[%emt 0:00:59]} Rb6 {[%emt 0:00:29]} 36. Rxb6 {[%emt 0:00:49]} Nxb6 {[%emt 0:00:09]} 37. Rg1 {[%emt 0:04:11]} Nd5 {[%emt 0:00:37]} 38. Rg6 {[%emt 0:00:28]} Rxh5 {[%emt 0:00:15]} 39. Nxe6 {[%emt 0:00:20]} Kc8 {[%emt 0:00:24]} 40. c4 {[%emt 0:00:00]} Ne3 {[%emt 0:00:00]} 41. Rg7 {[%emt 0:02:42]} Rh6 {[%emt 0:04:28]} 42. Nd4 {[%emt 0:03:42]} Nxc4 {[%emt 0:08:34]} 43. Nxf5 {[%emt 0:00:26]} Rh2 {[%emt 0:00:30]} 44. Kc1 {[%emt 0:07:16]} Re2 {[%emt 0:05:57]} 45. b3 {[%emt 0:02:32]} Re1+ {[%emt 0:04:06]} 46. Kc2 {[%emt 0:00:06]} Nxa3+ {[%emt 0:00:18]} 47. Kd2 {[%emt 0:00:20]} Rf1 {[%emt 0:00:17]} 48. Nd6+ {[%emt 0:00:15]} 1-0

[Event "79th UKR-ch Women 2019"]
[Site "Lutsk"]
[Date "2019.12.12"]
[Round "3.1"]
[White "Rakhmangulova, Anastasiya"]
[Black "Tsirulnik, Maritsa"]
[Result "1/2-1/2"]
[ECO "C60"]
[WhiteElo "2215"]
[BlackElo "2119"]
[Annotator "ChessBase"]
[PlyCount "96"]
[EventDate "2019.12.10"]
[EventType "tourn"]
[EventCountry "UKR"]
[SourceTitle "playchess.com"]
[Source "ChessBase"]
[SourceQuality "1"]
[TimeControl "40/5400+30:1800+30"]

1. e4 {[%emt 0:00:00]} e5 {[%emt 0:00:00]} 2. Nf3 {[%emt 0:00:00]} Nc6 {[%emt 0:00:00]} 3. Bb5 {[%emt 0:00:00]} g6 {[%emt 0:00:00]} 4. c3 {[%emt 0:00:00]} a6 {[%emt 0:00:11]} 5. Ba4 {[%emt 0:00:00]} Bg7 {[%emt 0:00:06]} 6. d4 {[%emt 0:00:51]} exd4 {[%emt 0:00:10]} 7. cxd4 {[%emt 0:00:05]} b5 {[%emt 0:00:05]} 8. Bc2 {[%emt 0:05:42]} d6 {[%emt 0:02:53]} 9. h3 {[%emt 0:02:02]} Nge7 {[%emt 0:03:48]} 10. O-O {[%emt 0:01:28]} O-O {[%emt 0:00:06]} 11. d5 {[%emt 0:16:05]} Na5 {[%emt 0:00:07]} 12. Nd4 {[%emt 0:06:09]} c5 {[%emt 0:13:38]} 13. Ne2 {[%emt 0:15:01]} Nc4 {[%emt 0:03:46]} 14. Nbc3 {[%emt 0:00:56]} Bd7 {[%emt 0:10:56]} 15. b3 {[%emt 0:07:36]} Nb6 {[%emt 0:00:10]} 16. Rb1 {[%emt 0:03:52]} b4 {[%emt 0:05:47]} 17. Na4 {[%emt 0:00:09]} Nxa4 {[%emt 0:00:04]} 18. bxa4 {[%emt 0:00:04]} Nc8 {[%emt 0:01:10]} 19. f4 {[%emt 0:06:36]} Nb6 {[%emt 0:05:29]} 20. f5 {[%emt 0:02:40]} Be5 {[%emt 0:05:11]} 21. Bf4 {[%emt 0:13:33]} f6 {[%emt 0:06:50]} 22. Bh6 {[%emt 0:09:48]} Re8 {[%emt 0:05:56]} 23. Nf4 {[%emt 0:00:08]} Bxf4 {[%emt 0:02:24]} 24. Bxf4 {[%emt 0:00:29]} Nc4 {[%emt 0:00:12]} 25. fxg6 {[%emt 0:03:12]} hxg6 {[%emt 0:00:05]} 26. Qd3 {[%emt 0:04:45]} Ne5 {[%emt 0:00:09]} 27. Qg3 {[%emt 0:00:04]} Kg7 {[%emt 0:01:52]} 28. Rf2 {[%emt 0:00:19]} Qe7 {[%emt 0:01:56]} 29. Rbf1 {[%emt 0:00:20]} Rf8 {[%emt 0:00:36]} 30. h4 {[%emt 0:00:33]} Rf7 {[%emt 0:03:25]} 31. h5 {[%emt 0:00:46]} g5 {[%emt 0:00:37]} 32. Bd1 {[%emt 0:02:13]} Rh8 {[%emt 0:01:05]} 33. Bc1 {[%emt 0:00:08]} Rh6 {[%emt 0:03:01]} 34. Bb2 {[%emt 0:00:49]} Rf8 {[%emt 0:04:54]} 35. Bxe5 {[%emt 0:00:32]} Qxe5 {[%emt 0:00:27]} 36. Qxe5 {[%emt 0:00:05]} dxe5 {[%emt 0:00:03]} 37. g4 {[%emt 0:00:59]} c4 {[%emt 0:03:49]} 38. a5 {[%emt 0:00:11]} Rb8 {[%emt 0:01:49]} 39. Rb2 {[%emt 0:00:27]} c3 {[%emt 0:00:36]} 40. Rb1 {[%emt 0:00:00]} Rhh8 {[%emt 0:00:00]} 41. Rf2 {[%emt 0:04:15]} Rhc8 {[%emt 0:07:01]} 42. Kg2 {[%emt 0:04:48]} Bb5 {[%emt 0:07:33]} 43. Kf3 {[%emt 0:06:59]} Bc4 {[%emt 0:04:57]} 44. Ke3 {[%emt 0:06:07]} Rc5 {[%emt 0:15:27]} 45. Rc2 {[%emt 0:01:38]} Rbb5 {[%emt 0:00:25]} 46. Rf2 {[%emt 0:05:02]} Rb7 {[%emt 0:04:32]} 47. Rc2 {[%emt 0:00:46]} Rbb5 {[%emt 0:03:25]} 48. Rf2 {[%emt 0:00:07]} Rb7 {[%emt 0:00:27]} 1/2-1/2